[Event "Late-Titled-Tuesday-Blitz-January-30-2024"]
[Site "Chess.com"]
[Date "2024.01.30"]
[Round "10"]
[White "sotochess"]
[Black "wild3000"]
[Result "1-0"]
[WhiteElo "2533"]
[BlackElo "2321"]
[TimeControl "180+1"]
[EndTime "15:54:32 PST"]
[Termination "sotochess won by resignation"]

1. e4 {[%clk 0:01:08.7]} 1... a6 {[%clk 0:02:58.9]} 2. d4 {[%clk 0:01:08.4]}
2... e6 {[%clk 0:02:58.4]} 3. Nf3 {[%clk 0:01:08.5]} 3... Be7 {[%clk 0:02:58.1]}
4. Bd3 {[%clk 0:01:08.5]} 4... b5 {[%clk 0:02:58.4]} 5. O-O {[%clk 0:01:09.4]}
5... Bb7 {[%clk 0:02:58.7]} 6. Re1 {[%clk 0:01:10.3]} 6... d6 {[%clk 0:02:59.2]}
7. a4 {[%clk 0:01:11.1]} 7... b4 {[%clk 0:02:58.9]} 8. c4 {[%clk 0:01:10.9]}
8... Nf6 {[%clk 0:02:57.8]} 9. Nbd2 {[%clk 0:01:10.4]} 9... a5 {[%clk
0:02:56.4]} 10. b3 {[%clk 0:01:10.1]} 10... Nbd7 {[%clk 0:02:56.5]} 11. Bb2
{[%clk 0:01:10]} 11... c5 {[%clk 0:02:55.4]} 12. e5 {[%clk 0:01:08.5]} 12...
dxe5 {[%clk 0:02:53.3]} 13. dxe5 {[%clk 0:01:08.5]} 13... Ng4 {[%clk 0:02:53.3]}
14. Qc2 {[%clk 0:01:07.6]} 14... Qc7 {[%clk 0:02:50.1]} 15. Be4 {[%clk
0:01:06.6]} 15... Rb8 {[%clk 0:02:25.8]} 16. h3 {[%clk 0:01:03.3]} 16... Nh6
{[%clk 0:02:19.6]} 17. Rad1 {[%clk 0:01:02.5]} 17... Bxe4 {[%clk 0:02:17.4]} 18.
Nxe4 {[%clk 0:01:02.3]} 18... Nf5 {[%clk 0:02:14.5]} 19. g4 {[%clk 0:00:58.9]}
19... Nh4 {[%clk 0:01:59.7]} 20. Nxh4 {[%clk 0:00:54]} 20... Bxh4 {[%clk
0:02:00.6]} 21. Nd6+ {[%clk 0:00:54.2]} 21... Kf8 {[%clk 0:02:00.8]} 22. Qe4
{[%clk 0:00:51]} 22... Be7 {[%clk 0:01:52.9]} 23. Rd3 {[%clk 0:00:50.6]} 23...
h5 {[%clk 0:01:49.4]} 24. Red1 {[%clk 0:00:47.3]} 24... Nb6 {[%clk 0:01:42.1]}
25. Rf3 {[%clk 0:00:19.6]} 25... Bxd6 {[%clk 0:01:38.7]} 26. exd6 {[%clk
0:00:19.4]} 26... Qb7 {[%clk 0:01:29.2]} 27. Qf4 {[%clk 0:00:14.5]} 27... hxg4
{[%clk 0:01:23.2]} 28. Qxg4 {[%clk 0:00:12.8]} 28... Rg8 {[%clk 0:01:11]} 29.
Re1 {[%clk 0:00:11.1]} 29... Re8 {[%clk 0:00:43.6]} 30. Re5 {[%clk 0:00:08.5]}
30... f5 {[%clk 0:00:26.1]} 31. Rexf5+ {[%clk 0:00:05]} 31... exf5 {[%clk
0:00:24.4]} 32. Qxf5+ {[%clk 0:00:05.5]} 1-0

[Event "Late-Titled-Tuesday-Blitz-January-30-2024"]
[Site "Chess.com"]
[Date "2024.01.30"]
[Round "10"]
[White "GaiozNigalidze"]
[Black "Brahianzevich"]
[Result "1-0"]
[WhiteElo "2694"]
[BlackElo "2428"]
[TimeControl "180+1"]
[EndTime "15:54:33 PST"]
[Termination "GaiozNigalidze won on time"]

1. e4 {[%clk 0:03:00.9]} 1... c5 {[%clk 0:02:59.8]} 2. Nf3 {[%clk 0:03:00.6]}
2... d6 {[%clk 0:03:00.2]} 3. d4 {[%clk 0:03:00.9]} 3... cxd4 {[%clk 0:03:01.1]}
4. Nxd4 {[%clk 0:03:01]} 4... Nf6 {[%clk 0:03:01.8]} 5. Nc3 {[%clk 0:03:01.5]}
5... a6 {[%clk 0:03:02.1]} 6. Bg5 {[%clk 0:03:01.5]} 6... e6 {[%clk 0:03:00.8]}
7. f4 {[%clk 0:03:01.8]} 7... h6 {[%clk 0:03:01.3]} 8. Bh4 {[%clk 0:03:01.5]}
8... Qb6 {[%clk 0:03:01.7]} 9. a3 {[%clk 0:03:00.4]} 9... Be7 {[%clk 0:03:01.3]}
10. Bf2 {[%clk 0:02:56.3]} 10... Qc7 {[%clk 0:03:01.5]} 11. g4 {[%clk
0:02:55.5]} 11... Nbd7 {[%clk 0:03:00.2]} 12. h4 {[%clk 0:02:51]} 12... b5
{[%clk 0:02:22.9]} 13. g5 {[%clk 0:02:46]} 13... hxg5 {[%clk 0:02:15.7]} 14.
fxg5 {[%clk 0:02:46.3]} 14... Nh5 {[%clk 0:02:13.5]} 15. g6 {[%clk 0:02:46.7]}
15... Ne5 {[%clk 0:02:12.3]} 16. gxf7+ {[%clk 0:02:41.1]} 16... Kxf7 {[%clk
0:02:11.8]} 17. Qe2 {[%clk 0:02:15.8]} 17... Bd7 {[%clk 0:02:04]} 18. O-O-O
{[%clk 0:02:14.2]} 18... Rab8 {[%clk 0:01:59.8]} 19. Be3 {[%clk 0:02:05.2]}
19... b4 {[%clk 0:01:55.8]} 20. axb4 {[%clk 0:02:06.1]} 20... Rxb4 {[%clk
0:01:56.2]} 21. Bh3 {[%clk 0:02:05.4]} 21... Nf6 {[%clk 0:01:16.7]} 22. Rdg1
{[%clk 0:01:51.6]} 22... Rhb8 {[%clk 0:00:36.3]} 23. Bxe6+ {[%clk 0:01:49.7]}
23... Bxe6 {[%clk 0:00:35.6]} 24. Rxg7+ {[%clk 0:01:50.3]} 24... Ke8 {[%clk
0:00:34.7]} 25. Nxe6 {[%clk 0:01:50.7]} 25... Qxc3 {[%clk 0:00:24]} 26. Bd4
{[%clk 0:01:01.4]} 26... Qc4 {[%clk 0:00:07.6]} 27. Qxc4 {[%clk 0:00:22.3]}
27... Rxc4 {[%clk 0:00:08.5]} 28. c3 {[%clk 0:00:22.2]} 28... Nxe4 {[%clk
0:00:03.7]} 29. h5 {[%clk 0:00:20.9]} 29... Kd7 {[%clk 0:00:02.2]} 30. Nf4
{[%clk 0:00:20.9]} 30... Rf8 {[%clk 0:00:02]} 31. Nd5 {[%clk 0:00:19.8]} 31...
Rf7 {[%clk 0:00:01.4]} 32. Bxe5 {[%clk 0:00:20.2]} 1-0

[Event "Late-Titled-Tuesday-Blitz-January-30-2024"]
[Site "Chess.com"]
[Date "2024.01.30"]
[Round "10"]
[White "Eduard_Limonov"]
[Black "topalovkramnik"]
[Result "1-0"]
[WhiteElo "2877"]
[BlackElo "2504"]
[TimeControl "180+1"]
[EndTime "15:54:36 PST"]
[Termination "Eduard_Limonov won by checkmate"]

1. e4 {[%clk 0:02:57.1]} 1... c5 {[%clk 0:02:59.1]} 2. Nf3 {[%clk 0:02:55]} 2...
d6 {[%clk 0:02:59.7]} 3. Bb5+ {[%clk 0:02:53.1]} 3... Nd7 {[%clk 0:02:59.3]} 4.
O-O {[%clk 0:02:53.3]} 4... g6 {[%clk 0:02:57.5]} 5. c3 {[%clk 0:02:52.9]} 5...
Bg7 {[%clk 0:02:55.1]} 6. d4 {[%clk 0:02:52.7]} 6... a6 {[%clk 0:02:54.4]} 7.
Ba4 {[%clk 0:02:51.8]} 7... b5 {[%clk 0:02:52.2]} 8. Bc2 {[%clk 0:02:51.4]} 8...
Bb7 {[%clk 0:02:51.8]} 9. Re1 {[%clk 0:02:47.5]} 9... e6 {[%clk 0:02:48.2]} 10.
Bf4 {[%clk 0:02:28.5]} 10... Qb6 {[%clk 0:02:35.3]} 11. a4 {[%clk 0:02:13.5]}
11... Ne7 {[%clk 0:02:31.2]} 12. a5 {[%clk 0:01:57.5]} 12... Qc6 {[%clk
0:02:21.3]} 13. d5 {[%clk 0:01:57.9]} 13... exd5 {[%clk 0:01:48.1]} 14. exd5
{[%clk 0:01:58.8]} 14... Qc7 {[%clk 0:01:48.8]} 15. Nbd2 {[%clk 0:01:50.5]}
15... Nf6 {[%clk 0:01:45.8]} 16. c4 {[%clk 0:01:16.2]} 16... O-O {[%clk
0:01:43.2]} 17. b3 {[%clk 0:01:05.7]} 17... Rae8 {[%clk 0:01:25.3]} 18. Ra2
{[%clk 0:00:55.2]} 18... Nexd5 {[%clk 0:01:15]} 19. cxd5 {[%clk 0:00:36.8]}
19... Nxd5 {[%clk 0:01:15.9]} 20. Be3 {[%clk 0:00:31]} 20... Nc3 {[%clk
0:01:15.5]} 21. Qa1 {[%clk 0:00:30.7]} 21... Ne2+ {[%clk 0:01:13.6]} 22. Rxe2
{[%clk 0:00:31.1]} 22... Bxa1 {[%clk 0:01:14.5]} 23. Rxa1 {[%clk 0:00:32]} 23...
d5 {[%clk 0:01:10.4]} 24. Rae1 {[%clk 0:00:31.7]} 24... d4 {[%clk 0:01:05.6]}
25. Bf4 {[%clk 0:00:30.8]} 25... Qc8 {[%clk 0:00:49.7]} 26. Be4 {[%clk
0:00:26.1]} 26... Bxe4 {[%clk 0:00:38.4]} 27. Nxe4 {[%clk 0:00:27]} 27... Re6
{[%clk 0:00:34.2]} 28. Nfg5 {[%clk 0:00:19.3]} 28... Rc6 {[%clk 0:00:31.9]} 29.
Bd6 {[%clk 0:00:19.4]} 29... Rd8 {[%clk 0:00:26.9]} 30. Nf6+ {[%clk 0:00:19.5]}
30... Kg7 {[%clk 0:00:25.4]} 31. Ne8+ {[%clk 0:00:19.2]} 31... Rxe8 {[%clk
0:00:22.6]} 32. Rxe8 {[%clk 0:00:18.8]} 32... Qf5 {[%clk 0:00:23.2]} 33. Bf8+
{[%clk 0:00:17.8]} 33... Kf6 {[%clk 0:00:11.3]} 34. Nxh7# {[%clk 0:00:17.9]} 1-0

[Event "Late-Titled-Tuesday-Blitz-January-30-2024"]
[Site "Chess.com"]
[Date "2024.01.30"]
[Round "10"]
[White "MikaelyanArman"]
[Black "Alex_Banzea"]
[Result "1-0"]
[WhiteElo "2853"]
[BlackElo "2638"]
[TimeControl "180+1"]
[EndTime "15:54:39 PST"]
[Termination "MikaelyanArman won on time"]

1. d4 {[%clk 0:03:00.9]} 1... Nf6 {[%clk 0:02:53.1]} 2. c4 {[%clk 0:03:01.2]}
2... g6 {[%clk 0:02:53.1]} 3. Nc3 {[%clk 0:03:00.9]} 3... Bg7 {[%clk 0:02:53.8]}
4. e4 {[%clk 0:03:01.3]} 4... d6 {[%clk 0:02:54.7]} 5. f4 {[%clk 0:03:01.8]}
5... O-O {[%clk 0:02:54.6]} 6. Nf3 {[%clk 0:03:02.5]} 6... c5 {[%clk 0:02:55.3]}
7. d5 {[%clk 0:03:02.8]} 7... e6 {[%clk 0:02:56]} 8. Be2 {[%clk 0:03:03.3]} 8...
exd5 {[%clk 0:02:56.2]} 9. cxd5 {[%clk 0:03:04.2]} 9... Bg4 {[%clk 0:02:53.2]}
10. O-O {[%clk 0:03:03.9]} 10... Nbd7 {[%clk 0:02:50.1]} 11. Qc2 {[%clk
0:02:58.8]} 11... Re8 {[%clk 0:02:46.4]} 12. h3 {[%clk 0:02:44.5]} 12... Bxf3
{[%clk 0:02:46.8]} 13. Bxf3 {[%clk 0:02:45.4]} 13... c4 {[%clk 0:02:45.5]} 14.
Be3 {[%clk 0:02:39.3]} 14... b5 {[%clk 0:02:41.3]} 15. Nxb5 {[%clk 0:02:01.7]}
15... Nxd5 {[%clk 0:02:40.8]} 16. exd5 {[%clk 0:02:02.6]} 16... Rxe3 {[%clk
0:02:40.6]} 17. Nxd6 {[%clk 0:02:03.3]} 17... Rxf3 {[%clk 0:02:29.6]} 18. Rxf3
{[%clk 0:01:58]} 18... Qb6+ {[%clk 0:02:30.3]} 19. Kh1 {[%clk 0:01:57.3]} 19...
Qxd6 {[%clk 0:02:30.9]} 20. Qxc4 {[%clk 0:01:55]} 20... Nb6 {[%clk 0:02:30]} 21.
Qc6 {[%clk 0:01:51.8]} 21... Qxd5 {[%clk 0:02:30.5]} 22. Qxd5 {[%clk 0:01:50]}
22... Nxd5 {[%clk 0:02:31.4]} 23. Rd1 {[%clk 0:01:49.7]} 23... Nc7 {[%clk
0:02:02.6]} 24. b4 {[%clk 0:01:39]} 24... Ne6 {[%clk 0:01:54]} 25. f5 {[%clk
0:01:37.4]} 25... Nd4 {[%clk 0:01:53.8]} 26. Rfd3 {[%clk 0:01:38]} 26... Rd8
{[%clk 0:01:29.3]} 27. fxg6 {[%clk 0:01:35.7]} 27... hxg6 {[%clk 0:01:30.2]} 28.
a4 {[%clk 0:01:33.1]} 28... f5 {[%clk 0:01:27.6]} 29. b5 {[%clk 0:01:30.5]}
29... Rd5 {[%clk 0:01:24]} 30. Rc3 {[%clk 0:01:20.6]} 30... Be5 {[%clk
0:01:19.3]} 31. Rc8+ {[%clk 0:01:18.1]} 31... Kf7 {[%clk 0:01:18.9]} 32. Ra8
{[%clk 0:01:14.5]} 32... Rd7 {[%clk 0:01:19.5]} 33. a5 {[%clk 0:01:12.9]} 33...
Rb7 {[%clk 0:01:09.8]} 34. b6 {[%clk 0:01:07.8]} 34... axb6 {[%clk 0:00:44.3]}
35. a6 {[%clk 0:01:07.7]} 35... Re7 {[%clk 0:00:05]} 36. a7 {[%clk 0:01:08.1]}
36... Rxa7 {[%clk 0:00:01.5]} 37. Rxa7+ {[%clk 0:01:08]} 37... Kf6 {[%clk
0:00:02.3]} 38. Ra6 {[%clk 0:01:05.4]} 38... Ne2 {[%clk 0:00:01.1]} 39. Rxb6+
{[%clk 0:01:05.2]} 39... Kg5 {[%clk 0:00:02]} 40. Re6 {[%clk 0:00:55]} 40...
Ng3+ {[%clk 0:00:02.9]} 41. Kg1 {[%clk 0:00:55]} 41... Bf4 {[%clk 0:00:02.7]}
42. Rd5 {[%clk 0:00:52]} 42... Kh4 {[%clk 0:00:02.8]} 43. Rd4 {[%clk 0:00:43.4]}
43... Kg5 {[%clk 0:00:02.4]} 44. h4+ {[%clk 0:00:37.8]} 1-0

[Event "Late-Titled-Tuesday-Blitz-January-30-2024"]
[Site "Chess.com"]
[Date "2024.01.30"]
[Round "10"]
[White "Msb2"]
[Black "Witik"]
[Result "1-0"]
[WhiteElo "2986"]
[BlackElo "2678"]
[TimeControl "180+1"]
[EndTime "15:54:41 PST"]
[Termination "Msb2 won on time"]

1. d4 {[%clk 0:03:00.9]} 1... Nf6 {[%clk 0:02:58.5]} 2. c4 {[%clk 0:03:01.3]}
2... g6 {[%clk 0:02:58.8]} 3. Nc3 {[%clk 0:03:02]} 3... Bg7 {[%clk 0:02:59.3]}
4. e4 {[%clk 0:03:02.6]} 4... d6 {[%clk 0:03:00]} 5. Nf3 {[%clk 0:03:03.4]} 5...
O-O {[%clk 0:03:00.3]} 6. Be2 {[%clk 0:03:04.3]} 6... e5 {[%clk 0:03:00.7]} 7.
Be3 {[%clk 0:03:05.1]} 7... Na6 {[%clk 0:02:44.7]} 8. O-O {[%clk 0:03:04.5]}
8... Qe7 {[%clk 0:02:44.2]} 9. dxe5 {[%clk 0:03:04.3]} 9... dxe5 {[%clk
0:02:44.2]} 10. Nd5 {[%clk 0:03:04.7]} 10... Qd8 {[%clk 0:02:44.7]} 11. Qc2
{[%clk 0:03:04.1]} 11... Ng4 {[%clk 0:02:33.8]} 12. Rad1 {[%clk 0:03:02.3]}
12... Nxe3 {[%clk 0:02:21.3]} 13. Nxe3 {[%clk 0:03:03.2]} 13... Qe8 {[%clk
0:02:07.9]} 14. c5 {[%clk 0:03:01.9]} 14... Be6 {[%clk 0:01:23.5]} 15. a3 {[%clk
0:02:56.3]} 15... Rc8 {[%clk 0:00:57.9]} 16. Bxa6 {[%clk 0:02:46.7]} 16... bxa6
{[%clk 0:00:58]} 17. Nd5 {[%clk 0:02:47.4]} 17... Kh8 {[%clk 0:00:51.3]} 18. b4
{[%clk 0:02:46.9]} 18... a5 {[%clk 0:00:45.6]} 19. h3 {[%clk 0:02:42.9]} 19...
c6 {[%clk 0:00:37.2]} 20. Ne3 {[%clk 0:02:41.6]} 20... axb4 {[%clk 0:00:37.8]}
21. axb4 {[%clk 0:02:42.5]} 21... Rb8 {[%clk 0:00:38]} 22. Qc3 {[%clk
0:02:40.1]} 22... f5 {[%clk 0:00:34.5]} 23. Rd6 {[%clk 0:02:35.8]} 23... fxe4
{[%clk 0:00:28.8]} 24. Ng5 {[%clk 0:02:28.8]} 24... Bg8 {[%clk 0:00:28.9]} 25.
Nxe4 {[%clk 0:02:26.4]} 25... Rf4 {[%clk 0:00:26.5]} 26. f3 {[%clk 0:02:24.6]}
26... Rf7 {[%clk 0:00:15]} 27. Ng4 {[%clk 0:02:20.2]} 27... Rfb7 {[%clk
0:00:13.1]} 28. Ngf6 {[%clk 0:02:16.1]} 28... Qe7 {[%clk 0:00:11.1]} 29. Nxg8
{[%clk 0:02:09.8]} 29... Kxg8 {[%clk 0:00:11.4]} 30. Rfd1 {[%clk 0:01:55]} 30...
Rxb4 {[%clk 0:00:06]} 31. Rd7 {[%clk 0:01:55.6]} 31... Qe6 {[%clk 0:00:06.3]}
32. Rd8+ {[%clk 0:01:56]} 32... Bf8 {[%clk 0:00:05.7]} 33. R1d6 {[%clk
0:01:44.6]} 33... Qf5 {[%clk 0:00:03.9]} 34. Rf6 {[%clk 0:01:28.4]} 34... Rb1+
{[%clk 0:00:03.4]} 35. Kh2 {[%clk 0:01:28.8]} 35... Rxd8 {[%clk 0:00:03.2]} 36.
Rxf5 {[%clk 0:01:29.4]} 36... gxf5 {[%clk 0:00:03.8]} 37. Nf6+ {[%clk 0:01:30]}
37... Kf7 {[%clk 0:00:03.9]} 38. Qxe5 {[%clk 0:01:28.2]} 38... Bg7 {[%clk
0:00:04.3]} 39. Qxf5 {[%clk 0:01:28.8]} 39... Bxf6 {[%clk 0:00:03.2]} 40. Qxh7+
{[%clk 0:01:29.2]} 40... Ke6 {[%clk 0:00:03]} 41. Qxb1 {[%clk 0:01:30.1]} 41...
Rd5 {[%clk 0:00:03.7]} 42. Qe4+ {[%clk 0:01:29.4]} 42... Kf7 {[%clk 0:00:04.2]}
43. f4 {[%clk 0:01:24.8]} 43... Rxc5 {[%clk 0:00:04.3]} 44. Qh7+ {[%clk
0:01:25.1]} 44... Ke6 {[%clk 0:00:04.5]} 45. Qxa7 {[%clk 0:01:24.8]} 45... Rc3
{[%clk 0:00:03.9]} 46. Qb8 {[%clk 0:01:22.8]} 46... c5 {[%clk 0:00:04]} 47. Qe8+
{[%clk 0:01:23]} 47... Kd6 {[%clk 0:00:04.3]} 48. Qf7 {[%clk 0:01:20.9]} 48...
Bd4 {[%clk 0:00:04.4]} 49. h4 {[%clk 0:01:21.2]} 49... c4 {[%clk 0:00:04.9]} 50.
h5 {[%clk 0:01:21.8]} 50... Rc1 {[%clk 0:00:04.1]} 51. f5 {[%clk 0:01:15.4]}
51... c3 {[%clk 0:00:04.1]} 52. Qe6+ {[%clk 0:01:15.7]} 52... Kc5 {[%clk
0:00:04.2]} 53. f6 {[%clk 0:01:15.9]} 53... c2 {[%clk 0:00:03.6]} 54. Qf5+
{[%clk 0:01:16.5]} 54... Kb4 {[%clk 0:00:03.6]} 55. f7 {[%clk 0:01:07.3]} 55...
Be3 {[%clk 0:00:03.1]} 56. f8=Q+ {[%clk 0:01:07.4]} 1-0

[Event "Late-Titled-Tuesday-Blitz-January-30-2024"]
[Site "Chess.com"]
[Date "2024.01.30"]
[Round "10"]
[White "Zura_19"]
[Black "Vladimir_2020"]
[Result "0-1"]
[WhiteElo "2575"]
[BlackElo "2778"]
[TimeControl "180+1"]
[EndTime "15:54:44 PST"]
[Termination "Vladimir_2020 won by resignation"]

1. d4 {[%clk 0:02:49.7]} 1... d5 {[%clk 0:02:59.3]} 2. Bf4 {[%clk 0:02:49.1]}
2... Nf6 {[%clk 0:02:56.9]} 3. e3 {[%clk 0:02:49.2]} 3... e6 {[%clk 0:02:56.5]}
4. Nf3 {[%clk 0:02:48]} 4... Bd6 {[%clk 0:02:55.1]} 5. Nbd2 {[%clk 0:02:45.8]}
5... O-O {[%clk 0:02:53.8]} 6. Bg3 {[%clk 0:02:43.3]} 6... c5 {[%clk 0:02:52.5]}
7. c3 {[%clk 0:02:43.4]} 7... Qc7 {[%clk 0:02:51.6]} 8. Ne5 {[%clk 0:02:32.5]}
8... Nbd7 {[%clk 0:02:46.2]} 9. f4 {[%clk 0:02:31.2]} 9... Ne4 {[%clk
0:02:43.7]} 10. Bd3 {[%clk 0:02:18.6]} 10... f5 {[%clk 0:02:30.8]} 11. Bh4
{[%clk 0:01:59.6]} 11... c4 {[%clk 0:02:28.1]} 12. Bc2 {[%clk 0:01:57.1]} 12...
b5 {[%clk 0:02:26.3]} 13. a3 {[%clk 0:01:54.7]} 13... Ndf6 {[%clk 0:02:11.8]}
14. Qf3 {[%clk 0:01:36.6]} 14... Bb7 {[%clk 0:02:00.3]} 15. Qh3 {[%clk
0:01:24.1]} 15... a5 {[%clk 0:01:55.3]} 16. Nxe4 {[%clk 0:01:07.2]} 16... dxe4
{[%clk 0:01:52.3]} 17. g4 {[%clk 0:00:56.9]} 17... Bxe5 {[%clk 0:01:46]} 18.
fxe5 {[%clk 0:00:53.8]} 18... Nxg4 {[%clk 0:01:45.7]} 19. Bd1 {[%clk 0:00:53.5]}
19... Qf7 {[%clk 0:01:30.1]} 20. Bxg4 {[%clk 0:00:39.3]} 20... fxg4 {[%clk
0:01:29.5]} 21. Qxg4 {[%clk 0:00:39.9]} 21... Qf3 {[%clk 0:01:01.7]} 22. Qxf3
{[%clk 0:00:39.4]} 22... exf3 {[%clk 0:00:59.9]} 23. Kf2 {[%clk 0:00:32.8]}
23... h6 {[%clk 0:00:59.1]} 24. Be7 {[%clk 0:00:25.1]} 24... Rf7 {[%clk
0:00:57.6]} 25. Bc5 {[%clk 0:00:23.9]} 25... g5 {[%clk 0:00:51.4]} 26. Rag1
{[%clk 0:00:22.9]} 26... Kh7 {[%clk 0:00:36.6]} 27. h4 {[%clk 0:00:21.6]} 27...
Kg6 {[%clk 0:00:36.8]} 28. hxg5 {[%clk 0:00:19.9]} 28... hxg5 {[%clk 0:00:36.8]}
29. Rg3 {[%clk 0:00:18]} 29... Rg8 {[%clk 0:00:32.5]} 30. Rhg1 {[%clk
0:00:17.5]} 30... Kf5 {[%clk 0:00:31.4]} 31. Rg4 {[%clk 0:00:14]} 31... Be4
{[%clk 0:00:30.5]} 32. R4g3 {[%clk 0:00:07.3]} 32... Rh7 {[%clk 0:00:29.6]} 33.
Kf1 {[%clk 0:00:05.6]} 33... g4 {[%clk 0:00:29.4]} 34. Ke1 {[%clk 0:00:03.9]}
34... Rh2 {[%clk 0:00:28.9]} 35. Rf1 {[%clk 0:00:03.1]} 35... Rxb2 {[%clk
0:00:26.9]} 36. Rf2 {[%clk 0:00:03.3]} 36... Rb1+ {[%clk 0:00:25]} 37. Kd2
{[%clk 0:00:03.5]} 37... Rh8 {[%clk 0:00:23.9]} 38. d5 {[%clk 0:00:02.5]} 38...
Rhh1 {[%clk 0:00:23.3]} 0-1

[Event "Late-Titled-Tuesday-Blitz-January-30-2024"]
[Site "Chess.com"]
[Date "2024.01.30"]
[Round "10"]
[White "Cubitas"]
[Black "rdarruda"]
[Result "0-1"]
[WhiteElo "2712"]
[BlackElo "2567"]
[TimeControl "180+1"]
[EndTime "15:54:47 PST"]
[Termination "rdarruda won on time"]

1. e4 {[%clk 0:02:59.2]} 1... c5 {[%clk 0:02:56.4]} 2. Nc3 {[%clk 0:02:57.4]}
2... e6 {[%clk 0:02:55.2]} 3. g3 {[%clk 0:02:56.7]} 3... Nc6 {[%clk 0:02:53.1]}
4. Bg2 {[%clk 0:02:56.5]} 4... Nf6 {[%clk 0:02:52.3]} 5. Nge2 {[%clk 0:02:55.8]}
5... Be7 {[%clk 0:02:50.3]} 6. O-O {[%clk 0:02:54.8]} 6... O-O {[%clk
0:02:48.2]} 7. d3 {[%clk 0:02:52.3]} 7... d6 {[%clk 0:02:48]} 8. h3 {[%clk
0:02:51.2]} 8... Rb8 {[%clk 0:02:45.2]} 9. f4 {[%clk 0:02:48.9]} 9... Qc7 {[%clk
0:02:44.3]} 10. Be3 {[%clk 0:02:45.3]} 10... b5 {[%clk 0:02:43.5]} 11. g4 {[%clk
0:02:40.3]} 11... b4 {[%clk 0:02:42.7]} 12. Na4 {[%clk 0:02:39.3]} 12... Bb7
{[%clk 0:02:41.1]} 13. c4 {[%clk 0:02:34.8]} 13... bxc3 {[%clk 0:02:38.1]} 14.
Naxc3 {[%clk 0:02:30.4]} 14... Rfd8 {[%clk 0:02:32.3]} 15. Rc1 {[%clk
0:02:19.2]} 15... Qa5 {[%clk 0:02:27.6]} 16. Bd2 {[%clk 0:02:03.3]} 16... Qa6
{[%clk 0:02:24.1]} 17. Be3 {[%clk 0:01:41.5]} 17... Nb4 {[%clk 0:02:11.1]} 18.
g5 {[%clk 0:01:41.3]} 18... Nh5 {[%clk 0:02:06.2]} 19. d4 {[%clk 0:01:29.7]}
19... Qd3 {[%clk 0:02:04.2]} 20. Qxd3 {[%clk 0:01:05.5]} 20... Nxd3 {[%clk
0:02:05.1]} 21. Rc2 {[%clk 0:01:05.9]} 21... Ba6 {[%clk 0:01:53.7]} 22. Rb1
{[%clk 0:01:02.6]} 22... cxd4 {[%clk 0:01:46.9]} 23. Nxd4 {[%clk 0:00:57.4]}
23... Rdc8 {[%clk 0:01:35.2]} 24. f5 {[%clk 0:00:48.6]} 24... Ndf4 {[%clk
0:01:23.6]} 25. fxe6 {[%clk 0:00:42.9]} 25... fxe6 {[%clk 0:01:22.6]} 26. Rd1
{[%clk 0:00:32.8]} 26... Nxg2 {[%clk 0:00:40.9]} 27. Rxg2 {[%clk 0:00:33.7]}
27... e5 {[%clk 0:00:38.5]} 28. Nf5 {[%clk 0:00:32.7]} 28... Bf8 {[%clk
0:00:37.9]} 29. g6 {[%clk 0:00:27.4]} 29... hxg6 {[%clk 0:00:35.5]} 30. Rxg6
{[%clk 0:00:27.4]} 30... Rxb2 {[%clk 0:00:31.5]} 31. Nd5 {[%clk 0:00:20]} 31...
Rcc2 {[%clk 0:00:26.2]} 32. Rg5 {[%clk 0:00:20.2]} 32... Nf4 {[%clk 0:00:22.3]}
33. Bxf4 {[%clk 0:00:17.9]} 33... exf4 {[%clk 0:00:23.2]} 34. Nf6+ {[%clk
0:00:17.4]} 34... Kf7 {[%clk 0:00:22.5]} 35. Nh7 {[%clk 0:00:16.6]} 35... f3
{[%clk 0:00:19.6]} 36. Rf1 {[%clk 0:00:15.8]} 36... Rg2+ {[%clk 0:00:18.4]} 37.
Rxg2 {[%clk 0:00:16.4]} 37... Rxg2+ {[%clk 0:00:18.3]} 38. Kh1 {[%clk
0:00:16.5]} 38... Bxf1 {[%clk 0:00:18.9]} 0-1

[Event "Late-Titled-Tuesday-Blitz-January-30-2024"]
[Site "Chess.com"]
[Date "2024.01.30"]
[Round "10"]
[White "neri_gaite"]
[Black "BeardedNM"]
[Result "0-1"]
[WhiteElo "2014"]
[BlackElo "2179"]
[TimeControl "180+1"]
[EndTime "15:54:52 PST"]
[Termination "BeardedNM won on time"]

1. d4 {[%clk 0:02:07.1]} 1... e6 {[%clk 0:02:59]} 2. c4 {[%clk 0:02:06.7]} 2...
Nf6 {[%clk 0:02:59.3]} 3. Nf3 {[%clk 0:02:06.1]} 3... d5 {[%clk 0:03:00]} 4. Bg5
{[%clk 0:02:05.6]} 4... dxc4 {[%clk 0:03:00.1]} 5. e4 {[%clk 0:02:04.9]} 5... b5
{[%clk 0:02:55.9]} 6. a4 {[%clk 0:02:03.7]} 6... c6 {[%clk 0:02:55]} 7. e5
{[%clk 0:02:03.6]} 7... h6 {[%clk 0:02:54.6]} 8. Bh4 {[%clk 0:02:03.5]} 8... g5
{[%clk 0:02:50.3]} 9. Nxg5 {[%clk 0:02:03.5]} 9... hxg5 {[%clk 0:02:50.3]} 10.
Bxg5 {[%clk 0:02:04.4]} 10... Nbd7 {[%clk 0:02:44.5]} 11. axb5 {[%clk
0:02:02.1]} 11... cxb5 {[%clk 0:02:32.2]} 12. Qf3 {[%clk 0:02:01.9]} 12... Rb8
{[%clk 0:02:01.5]} 13. exf6 {[%clk 0:01:58.5]} 13... Bb7 {[%clk 0:01:55.4]} 14.
Qd1 {[%clk 0:01:49.1]} 14... a6 {[%clk 0:01:52.6]} 15. b3 {[%clk 0:01:35.9]}
15... Bb4+ {[%clk 0:01:33.5]} 16. Bd2 {[%clk 0:01:21]} 16... Bxd2+ {[%clk
0:01:32.8]} 17. Qxd2 {[%clk 0:01:14]} 17... cxb3 {[%clk 0:01:28.5]} 18. Qb4
{[%clk 0:01:10.2]} 18... Nxf6 {[%clk 0:01:15.5]} 19. Nc3 {[%clk 0:00:58.7]}
19... Nd5 {[%clk 0:01:06.3]} 20. Qxb3 {[%clk 0:00:45.8]} 20... Qc7 {[%clk
0:00:41.1]} 21. Bxb5+ {[%clk 0:00:28.6]} 21... axb5 {[%clk 0:00:40.4]} 22. Nxb5
{[%clk 0:00:29.5]} 22... Qf4 {[%clk 0:00:23.6]} 23. g3 {[%clk 0:00:16.8]} 23...
Qe4+ {[%clk 0:00:23.6]} 24. Kd2 {[%clk 0:00:13.7]} 24... O-O {[%clk 0:00:15.8]}
25. Rhe1 {[%clk 0:00:13.8]} 25... Qg2 {[%clk 0:00:14.4]} 26. Re5 {[%clk
0:00:09.4]} 26... Qxf2+ {[%clk 0:00:13.5]} 27. Kd3 {[%clk 0:00:07.7]} 27... Ba6
{[%clk 0:00:13]} 28. Rg5+ {[%clk 0:00:06.4]} 28... Kh7 {[%clk 0:00:11.4]} 29.
Rxa6 {[%clk 0:00:06.8]} 29... Qf1+ {[%clk 0:00:10.3]} 30. Ke4 {[%clk 0:00:05.6]}
30... Qxb5 {[%clk 0:00:10.1]} 31. Qxb5 {[%clk 0:00:05.2]} 31... Rxb5 {[%clk
0:00:11]} 32. Ra5 {[%clk 0:00:05]} 32... Rxa5 {[%clk 0:00:10.2]} 33. h4 {[%clk
0:00:04.2]} 33... Nc3+ {[%clk 0:00:09.8]} 34. Kd3 {[%clk 0:00:02.7]} 34... Rxg5
{[%clk 0:00:10.4]} 35. Kxc3 {[%clk 0:00:03.6]} 35... Rxg3+ {[%clk 0:00:10.4]}
0-1